bitfinex/quotes_ETHUSD_20240810
["timestamp","ask_amount","ask_price","bid_price","bid_amount"]
[1723317724126,0.469186,2613.0,2612.7,1.91372]
[1723317724332,0.00430935,2612.9,2612.7,1.91372]
[1723317725437,0.00430935,2612.9,2612.8,1.91365]
[1723317725592,0.00430935,2612.9,2612.1,1.91413]
[1723317725792,0.00430935,2612.9,2612.6,1.91375]
[1723317726510,0.00430935,2612.9,2612.7,1.91369]
[1723317726716,0.00430935,2612.9,2612.6,1.91375]
[1723317727412,0.00430935,2612.9,2612.7,1.91371]
[1723317728645,0.00430935,2612.9,2612.8,1.91365]
[1723317729148,0.00430935,2612.9,2612.4,1.91391]
[1723317729358,1.91383,2612.6,2612.0,1.91421]
[1723317729554,2.969883,2612.5,2611.8,1.91437]
[1723317729717,3.01616919,2612.5,2611.8,1.91437]
[1723317730044,3.01616919,2612.5,2612.0,1.91421]
[1723317730401,4.93004919,2612.5,2611.8,1.91437]
[1723317730601,2.40694492,2612.4,2611.8,1.91437]
[1723317730826,0.04595169,2612.3,2611.7,1.9144]
[1723317731314,1.95997169,2612.3,2611.6,1.91447]
[1723317731514,1.95997169,2612.3,2611.1,2.779]
[1723317731515,2.7785,2612.0,2611.1,1.91488]
[1723317731840,2.7785,2612.0,2611.4,1.91467]
[1723317731841,0.469271,2611.9,2611.4,1.91467]
[1723317732042,0.51484756,2611.9,2611.4,1.91467]
[1723317732400,0.51484756,2611.9,2611.4,0.05598928]
[1723317732401,0.04557656,2611.9,2611.4,0.05598928]
[1723317732608,0.04557656,2611.9,2611.8,1.91438]
[1723317732831,19.77,2612.2,2611.4,0.05598928]
[1723317732832,19.77,2612.2,2611.9,1.91426]
[1723317733041,19.77,2612.2,2612.0,1.9142]
[1723317733404,0.04567175,2612.1,2612.0,1.9142]
[1723317733617,0.04567175,2612.1,2612.0,3.88446715]
[1723317733952,0.04567175,2612.1,2612.0,4.21688672]
[1723317734252,0.04567175,2612.1,2612.0,3.82844]
[1723317734762,0.04567175,2612.1,2612.0,1.9142]
[1723317735766,0.04567175,2612.1,2612.0,3.82844]
[1723317736781,19.77,2612.3,2612.2,3.82818]
[1723317738459,2.7025,2612.8,2612.6,1.9138]
[1723317738624,2.7025,2613.2,2612.7,1.91367]
[1723317739081,2.7025,2613.2,2612.8,1.91365]
[1723317742683,2.7025,2613.2,2612.7,1.91371]
[1723317743054,1.91795935,2612.9,2612.2,1.91404]
[1723317743242,2.89429594,2612.8,2611.7,5.6556]
[1723317743440,2.7025,2612.8,2611.7,5.6556]
[1723317743873,4.61616,2612.8,2612.2,1.91404]
[1723317744668,0.04634512,2612.7,2612.2,1.91404]
[1723317745091,0.04634512,2612.7,2612.1,1.91411]
[1723317745296,0.04634512,2612.7,2611.9,1.91431]
[1723317745597,1.91381,2612.6,2611.9,1.91431]
[1723317745960,0.04599729,2612.5,2611.9,1.91431]
[1723317746368,0.04599729,2612.5,2612.1,1.91416]
[1723317747111,1.91407,2612.3,2611.7,1.91439]
[1723317747456,0.04607568,2612.2,2611.7,1.91439]
[1723317748055,0.04607568,2612.2,2611.8,1.91432]
[1723317748298,19.77,2612.3,2611.8,1.91432]
[1723317748505,0.0462349,2612.2,2611.8,1.91432]
[1723317748717,19.77,2612.3,2611.8,1.91432]
[1723317748876,0.0462349,2612.2,2611.8,1.91432]
[1723317749076,22.938642,2612.3,2611.8,1.91432]
[1723317749391,0.0462349,2612.2,2611.8,1.91432]
[1723317749803,19.77,2612.3,2611.8,1.91432]
[1723317750000,0.04614113,2612.1,2611.8,1.91432]
[1723317750180,19.77,2612.3,2611.8,1.91432]
[1723317750181,0.04622127,2612.2,2611.8,1.91432]
[1723317750375,0.04603373,2612.0,2611.8,1.91432]
[1723317750602,19.77,2612.3,2611.8,0.382871]
[1723317750807,0.04520386,2611.9,2611.8,3.82876]
[1723317751006,19.77,2612.3,2611.9,1.91429]
[1723317751560,2.7025,2612.4,2612.0,1.91423]
[1723317754716,2.7025,2612.4,2612.1,1.91415]
[1723317754972,2.7025,2612.4,2612.0,1.91423]
[1723317755494,2.7025,2612.4,2612.0,1.91418]
[1723317755840,2.7025,2612.4,2611.8,3.82868]
[1723317756245,2.7025,2612.4,2611.9,1.91428]
[1723317757580,7.785088,2612.4,2611.8,1.91433]
[1723317758782,5.871138,2612.4,2611.8,1.91433]
[1723317759343,5.871138,2612.4,2611.9,1.91431]
[1723317759544,5.871138,2612.4,2611.8,1.91433]
[1723317759742,0.04555505,2612.3,2611.8,1.91433]
[1723317760580,2.8301,2612.2,2611.8,1.91433]
[1723317761098,0.04535882,2612.1,2611.7,1.91445]
[1723317762279,0.04535882,2612.1,2611.9,3.82856]
[1723317762485,12.04397,2612.5,2611.9,1.91425]
[1723317762699,0.04596083,2612.4,2611.9,3.82852]
[1723317762859,0.04596083,2612.4,2612.0,1.91422]
[1723317763300,0.04596083,2612.4,2611.9,1.91425]
[1723317763601,4.74417,2612.3,2611.7,1.91443]
[1723317763802,4.74417,2612.3,2611.7,3.82884]
[1723317764093,0.0457733,2612.2,2611.7,1.91441]
[1723317764806,0.0457733,2612.2,2611.8,1.91438]
[1723317764959,0.0457733,2612.2,2611.7,1.91441]
[1723317765161,2.8301,2612.3,2611.7,1.91441]
[1723317765468,0.0457733,2612.2,2611.7,1.91441]
[1723317765671,0.0457733,2612.2,2611.7,2.297308]
[1723317766505,2.8301,2612.1,2611.7,1.91441]
[1723317766657,0.04558574,2612.0,2611.7,1.91441]
[1723317767871,0.04558574,2612.0,2611.9,1.91431]
[1723317768084,0.04558574,2612.0,2611.9,3.82862]
[1723317768288,10.1301,2612.5,2612.1,1.91414]
[1723317768474,0.04564736,2612.4,2612.1,1.91414]
[1723317770155,2.8301,2612.3,2611.7,1.9144]
[1723317770796,0.04550614,2612.2,2611.7,1.9144]
[1723317770999,0.04550614,2612.2,2611.7,3.82881]
[1723317771351,0.04550614,2612.2,2611.7,1.9144]
[1723317772201,0.04550614,2612.2,2611.8,1.91438]
[1723317772504,2.8301,2612.3,2611.7,2.297297]
[1723317772660,2.8301,2612.3,2611.7,3.82881]
[1723317772861,0.04551264,2612.2,2611.7,3.82881]
[1723317773894,0.04551264,2612.2,2611.7,1.9144]
[1723317774679,2.6979,2612.1,2611.5,3.82913]
[1723317775004,0.04532506,2612.0,2611.6,1.91451]
[1723317775183,2.6979,2611.9,2611.3,1.91473]
[1723317775378,4.61221,2611.9,2611.3,1.91473]
[1723317775579,0.04541342,2611.8,2611.3,3.82944]
[1723317775799,0.04541342,2611.8,2611.3,1.91471]
[1723317776490,0.04541342,2611.8,2611.3,3.82941]
[1723317777330,0.04541342,2611.8,2611.3,2.297641]
[1723317777646,2.6979,2611.7,2611.3,1.9147]
[1723317777775,2.6979,2611.7,2611.1,1.91486]
[1723317777776,4.61238,2611.7,2611.1,1.91486]
[1723317777982,0.04513703,2611.6,2611.2,1.91481]
[1723317780308,0.04513703,2611.6,2611.1,1.91485]
[1723317780620,0.04513703,2611.6,2611.1,3.8297]
[1723317781219,0.04513703,2611.6,2611.1,1.91485]
[1723317783621,2.6979,2611.5,2611.1,1.91485]
[1723317783809,2.6979,2611.5,2611.2,1.9148]
[1723317784010,0.04522609,2611.4,2611.2,1.9148]
[1723317784218,0.04522609,2611.4,2611.1,1.91485]
[1723317785011,0.04522609,2611.4,2611.2,1.91481]
[1723317786601,0.04522609,2611.4,2611.0,1.91491]
[1723317786799,0.04522609,2611.4,2611.0,0.2298028]
[1723317787900,0.04522609,2611.4,2610.4,3.39278733]
[1723317787901,2.6979,2611.3,2610.7,1.91514]
[1723317788198,0.0446907,2611.2,2610.7,1.91514]
[1723317788511,4.61281,2611.1,2610.5,1.91529]
[1723317788683,0.04449869,2611.0,2610.5,1.91529]
[1723317790120,2.6979,2610.9,2610.5,1.91529]
[1723317790490,0.04427198,2610.8,2610.3,1.91544]
[1723317790735,2.6979,2610.7,2610.3,2.298543]
[1723317790938,2.6979,2610.7,2610.3,1.91544]
[1723317791138,0.0440214,2610.6,2610.2,1.91552]
[1723317793184,0.0440214,2610.6,2609.9,1.91574]
[1723317793318,0.0440214,2610.6,2609.9,2.107314]
[1723317793524,0.0440214,2610.6,2610.1,1.91558]
[1723317793937,0.0440214,2610.6,2610.0,1.9157]
[1723317794141,1.91545,2610.4,2609.7,1.91585]
[1723317794346,1.91501,2611.0,2609.7,1.91585]
[1723317794347,4.76826143,2610.3,2609.7,1.91585]
[1723317794556,1.91557,2610.2,2609.5,1.91601]
[1723317794753,0.04354672,2610.1,2609.6,1.916]
[1723317794954,0.04354672,2610.1,2609.5,2.44553347]
[1723317795172,2.8089,2610.0,2609.5,1.91601]
[1723317795462,0.04340384,2609.9,2609.5,1.91601]
[1723317796481,2.8089,2609.8,2609.3,1.9162]
[1723317796764,0.0431986,2609.7,2609.5,1.91607]
[1723317796989,2.8089,2609.8,2609.7,1.91592]
[1723317797130,1.91539,2610.5,2609.8,1.91583]
[1723317797131,2.8089,2610.4,2609.8,1.91583]
[1723317797819,4.72439,2610.3,2609.6,3.83194]
[1723317798024,2.8089,2610.2,2609.6,1.91594]
[1723317798249,3.281339,2610.2,2609.6,1.91594]
[1723317798433,5.196949,2610.2,2609.6,1.91594]
[1723317799343,1.91563,2610.1,2609.4,3.83221]
[1723317799550,2.8089,2610.0,2609.4,1.91609]
[1723317800430,2.8089,2609.9,2609.4,1.91609]
[1723317803664,2.6268759,2610.1,2608.9,0.60032929]
[1723317803665,1.91608,2609.5,2608.9,0.60032929]
[1723317803890,2.8089,2609.4,2608.8,1.91654]
[1723317804370,2.8089,2609.4,2609.2,1.91628]
[1723317804554,2.8089,2609.4,2609.2,1.91624]
[1723317804755,2.8089,2609.8,2609.3,1.91622]
[1723317805279,2.8089,2609.8,2609.3,1.91616]
[1723317805787,2.8089,2609.8,2609.4,1.91614]
[1723317807850,2.8089,2609.8,2609.5,1.916]
[1723317808054,2.8089,2609.8,2609.5,3.83203]
[1723317808989,2.8089,2609.8,2609.5,1.916]
[1723317810480,2.8089,2609.8,2609.3,3.83234]
[1723317811629,2.8089,2609.8,2609.4,1.91613]
[1723317813623,2.8089,2609.8,2609.3,1.91616]
[1723317813824,2.8089,2609.8,2609.3,2.107776]
[1723317814335,2.8089,2609.8,2609.4,1.9161]
[1723317816534,2.8089,2609.8,2609.5,1.91603]
[1723317816831,2.8089,2609.8,2609.5,1.91602]
[1723317817899,2.8089,2609.8,2609.6,1.916]
[1723317818210,2.779,2610.8,2609.6,0.1916]
[1723317818211,2.7597,2610.3,2609.6,0.1916]
[1723317818393,2.7597,2610.3,2609.4,0.0766402]
[1723317818599,2.7597,2610.3,2609.8,1.9158]
[1723317819906,0.04259064,2610.2,2609.8,1.9158]
[1723317820315,2.7597,2610.3,2609.8,1.9158]
[1723317820525,0.04250116,2610.1,2609.8,1.9158]
[1723317820746,0.04259506,2610.2,2610.0,1.9157]
[1723317820903,2.7597,2610.3,2609.8,1.91579]
[1723317821735,4.6752,2610.3,2609.8,1.91579]
[1723317821950,2.7597,2610.0,2609.6,1.91597]
[1723317823028,4.67545,2610.0,2609.4,1.9161]
[1723317823208,2.7597,2609.9,2609.4,1.9161]
[1723317824326,4.67548,2609.9,2609.4,1.9161]
[1723317824523,5.334592,2609.9,2609.4,1.9161]
[1723317824841,3.418812,2609.9,2609.4,1.9161]
[1723317825014,2.7597,2609.9,2609.5,1.91603]
[1723317827084,2.7597,2609.9,2609.4,1.91609]
[1723317827244,2.7597,2609.9,2609.4,3.83218]
[1723317827450,2.7597,2609.9,2609.4,3.83219]
[1723317828550,2.7597,2609.9,2609.5,1.91607]
[1723317830088,2.7597,2609.9,2609.4,1.91609]
[1723317830324,2.7597,2609.9,2609.6,1.91593]
[1723317832776,2.7597,2609.9,2609.8,1.91585]
[1723317832982,2.7825,2610.4,2609.8,1.91581]
[1723317833234,3.0,2610.3,2609.8,1.91581]
[1723317833377,2.7825,2610.2,2609.7,1.91587]
[1723317833720,2.7825,2610.2,2609.5,2.107659]
[1723317833721,2.7825,2610.2,2609.6,1.91599]
[1723317834049,2.7825,2610.2,2609.7,1.91591]
[1723317834325,2.7825,2610.2,2609.7,3.83179]
[1723317834493,3.6292829,2610.2,2609.7,3.83179]
[1723317834685,3.6292829,2610.2,2609.8,1.91583]
[1723317835014,2.7825,2610.0,2609.5,1.91604]
[1723317835480,0.04253895,2609.9,2609.5,1.91604]
[1723317837804,0.04253895,2609.9,2608.8,2.57955695]
[1723317837805,2.7825,2609.3,2608.8,2.57955695]
[1723317838008,2.82438134,2609.2,2608.6,1.91673]
[1723317838298,2.82438134,2609.2,2608.8,1.91658]
[1723317838809,2.82438134,2609.2,2608.6,3.07267]
[1723317839103,2.7825,2609.0,2608.4,3.07283]
[1723317839435,0.04144691,2608.9,2608.4,1.156]
[1723317840438,1.95797691,2608.9,2608.4,1.156]
[1723317840623,0.04144691,2608.9,2608.4,3.07287]
[1723317840828,2.7825,2608.8,2608.3,1.91695]
[1723317841138,2.7825,2608.8,2608.4,1.156]
[1723317841319,0.04127071,2608.7,2608.4,1.156]
[1723317841702,2.7825,2608.8,2608.3,1.91695]
[1723317841935,0.0411767,2608.6,2608.3,1.91695]
[1723317842116,0.04127071,2608.7,2608.3,1.91695]
[1723317842433,2.7825,2608.8,2608.5,1.91676]
[1723317842664,0.0411767,2608.6,2608.5,1.91676]
[1723317842844,2.7825,2608.8,2608.5,1.91676]
[1723317843045,0.0411767,2608.6,2608.5,1.91676]
[1723317843207,2.7825,2608.8,2608.5,1.91676]
[1723317843408,0.04127071,2608.7,2608.5,1.91676]
[1723317843744,2.7825,2608.8,2608.5,1.91676]
[1723317843947,0.0411767,2608.6,2608.5,1.91676]
[1723317844153,2.7825,2608.8,2608.6,1.91672]
[1723317845149,2.7825,2609.3,2608.8,1.91658]
[1723317845813,2.7825,2609.3,2608.6,1.9167]
[1723317845814,4.69878,2609.3,2608.6,1.9167]
[1723317846646,1.91635,2609.2,2608.6,1.9167]
[1723317847026,1.91637,2609.1,2608.6,1.9167]
[1723317847520,1.91644,2609.0,2608.4,1.91686]
[1723317847848,2.7825,2609.0,2608.5,1.9168]
[1723317849916,0.04084671,2608.9,2608.5,1.9168]
[1723317850110,0.04084671,2608.9,2608.4,4.24222253]
[1723317850831,0.04084671,2608.9,2608.5,0.0665]
[1723317853433,1.95736671,2608.9,2608.5,0.0665]
[1723317854333,4.82929,2608.8,2608.5,0.0665]
[1723317854650,0.04065,2608.7,2608.5,0.0665]
[1723317855014,4.82929,2608.8,2608.5,0.0665]
[1723317855265,0.04065,2608.7,2608.5,0.0665]
[1723317855567,2.9127,2608.6,2608.5,0.0665]
[1723317855745,5.316431,2608.6,2608.5,0.0665]
[1723317855918,5.35696962,2608.6,2608.5,0.0665]
[1723317856953,7.27369962,2608.6,2608.5,0.0665]
[1723317857263,10.27369962,2608.6,2608.5,0.0665]
[1723317861061,8.35696962,2608.6,2608.5,0.0665]
[1723317861250,2.95323862,2608.6,2608.5,0.0665]
[1723317861448,0.04053862,2608.6,2608.5,0.0665]
[1723317861981,19.77,2608.8,2608.5,0.0665]
[1723317862139,0.03878264,2608.6,2608.5,0.0665]
[1723317862346,19.77,2608.8,2608.5,0.0665]
[1723317862888,0.03887666,2608.7,2608.5,0.0665]
[1723317863393,19.77,2608.8,2608.5,1.9833]
[1723317863695,19.77,2608.8,2608.6,1.91668]
[1723317863987,0.03855542,2608.7,2608.6,1.91668]
[1723317864346,2.9127,2609.0,2608.6,1.91668]
[1723317864540,0.03907973,2608.7,2608.6,1.91668]
[1723317864742,2.9127,2609.0,2608.6,1.91668]
[1723317865085,2.9127,2609.0,2608.6,2.35334506]
[1723317865248,0.03926774,2608.9,2608.6,2.35334506]
[1723317865635,0.03926774,2608.9,2608.7,1.91664]
[1723317869013,0.03926774,2608.9,2608.7,3.83325]
[1723317869180,27.07,2609.1,2608.7,1.91661]
[1723317869373,0.03676232,2609.0,2608.7,1.91661]
[1723317869574,0.03676232,2609.0,2608.7,2.38926561]
[1723317870175,0.03676232,2609.0,2608.7,4.30587561]
[1723317870372,0.03676232,2609.0,2608.7,0.47265561]
[1723317870581,1.91637,2609.1,2608.5,2.373251]
[1723317870788,0.03698379,2609.0,2608.5,2.373251]
[1723317873209,0.03698379,2609.0,2608.5,4.290011]
[1723317873483,0.03698379,2609.0,2608.5,2.373251]
[1723317873692,0.03698379,2609.0,2608.6,0.24499162]
[1723317873914,22.6622,2609.2,2608.6,0.24499162]
[1723317874142,0.03688979,2608.9,2608.6,0.24499162]
[1723317874313,22.6622,2609.2,2608.6,0.24499162]
[1723317874616,22.6622,2609.2,2608.7,1.91663]
[1723317874782,22.6622,2609.2,2608.8,1.91658]
[1723317874983,0.03707778,2609.1,2608.9,1.91646]
[1723317875175,0.03707778,2609.1,2609.0,1.91644]
[1723317878620,0.03707778,2609.1,2608.8,2.44004016]
[1723317878918,0.03707778,2609.1,2608.7,1.91662]
[1723317879259,0.03707778,2609.1,2608.7,3.83323]
[1723317879533,0.03707778,2609.1,2608.9,1.91647]
[1723317879886,0.03707778,2609.1,2608.7,1.91661]
[1723317880091,0.03707778,2609.1,2608.7,3.83322]
[1723317880303,0.03707778,2609.1,2608.7,1.91661]
[1723317881434,0.03707778,2609.1,2608.8,1.91658]
[1723317886755,0.03707778,2609.1,2608.9,1.91649]
[1723317886955,0.03707778,2609.1,2609.0,1.91644]
[1723317894701,0.03724948,2609.1,2609.0,1.91644]
[1723317894908,4.80573,2609.6,2609.0,1.91644]
[1723317895224,0.03724948,2609.1,2609.0,1.91644]
[1723317895711,3.187573,2609.5,2609.0,1.91644]
[1723317895906,0.03724948,2609.1,2609.0,1.91644]
[1723317896208,24.57573,2609.6,2609.0,1.91644]
[1723317896371,0.03727988,2609.1,2609.0,1.91644]
[1723317896909,2.7055,2609.1,2608.6,1.91673]
[1723317897064,2.74277988,2609.1,2608.6,1.91673]
[1723317897271,2.74277988,2609.1,2608.8,1.91652]
[1723317897574,2.74277988,2609.1,2608.8,3.83306]
[1723317898688,2.74277988,2609.1,2608.9,1.91651]
[1723317898689,0.03727988,2609.1,2608.9,1.91651]
[1723317898906,0.03727988,2609.1,2608.8,3.83306]
[1723317899094,2.7055,2609.3,2608.8,1.91652]
[1723317899302,0.03585723,2609.0,2608.8,3.83306]
[1723317899521,2.7055,2609.3,2608.8,3.83306]
[1723317899680,0.03576323,2608.9,2608.8,1.91652]
[1723317899881,2.7055,2609.3,2608.8,3.83306]
[1723317900123,0.03576323,2608.9,2608.8,1.91652]
[1723317900416,2.7055,2609.3,2608.8,3.83306]
[1723317900924,0.0360452,2609.2,2608.9,1.91646]
[1723317901421,2.7055,2609.3,2608.9,1.91646]
[1723317901769,2.7055,2609.3,2608.8,1.91652]
[1723317901770,2.7055,2609.3,2609.0,1.91644]
[1723317901898,0.0360452,2609.2,2609.0,1.91644]
[1723317902298,2.7055,2609.3,2609.0,1.91644]
[1723317902592,0.03595122,2609.1,2609.0,3.455736]
[1723317902775,22.4755,2609.5,2609.2,1.91624]
[1723317902980,2.7055,2609.5,2609.2,1.91624]
[1723317903181,2.7055,2609.5,2608.8,1.91652]
[1723317903402,2.7055,2609.2,2608.8,1.91652]
[1723317903818,2.7055,2609.2,2608.6,1.91668]
[1723317904126,4.62181,2609.2,2608.6,1.91668]
[1723317904299,1.91648,2609.0,2608.5,0.0665]
[1723317904617,2.7055,2608.8,2608.5,0.0665]
[1723317906013,24.39214,2608.8,2608.5,0.0665]
[1723317908360,2.7055,2608.7,2608.5,0.0665]
[1723317908650,4.62221,2608.7,2608.5,0.0665]
[1723317908819,5.084431,2608.7,2608.5,0.0665]
[1723317909729,4.65769825,2608.6,2608.5,0.0665]
[1723317909924,6.57442825,2608.6,2608.5,0.0665]
[1723317910140,2.74096825,2608.6,2608.5,0.0665]
[1723317912129,0.03546825,2608.6,2608.5,1.98331]
[1723317912328,0.03546825,2608.6,2608.5,2.18930883]
[1723317912554,2.7055,2608.9,2608.5,2.18930883]
[1723317912917,0.03556403,2608.8,2608.5,2.18930883]
[1723317913851,0.03556403,2608.8,2608.5,0.27249883]
[1723317914043,0.03556403,2608.8,2608.6,1.91671]
[1723317914958,19.80556403,2608.8,2608.6,1.91671]
[1723317915118,19.80556403,2608.8,2608.7,1.91666]
[1723317916256,19.80556403,2608.8,2608.5,0.0665]
[1723317916257,2.9147,2608.7,2608.5,0.0665]
[1723317916456,4.8314,2608.7,2608.5,0.0665]
[1723317916664,0.03537602,2608.6,2608.5,0.0665]
[1723317919366,19.77,2608.8,2608.6,1.91672]
[1723317920852,19.77,2609.0,2608.6,1.91672]
[1723317921252,19.77,2609.0,2608.6,0.47433484]
[1723317921425,19.77,2609.0,2608.6,0.07666524]
[1723317922471,19.77,2609.0,2608.9,1.91651]
[1723317923435,19.77,2609.0,2608.8,1.91653]
[1723317924169,19.66620392,2609.0,2608.8,1.91653]
[1723317924469,19.66620392,2609.0,2608.8,4.216383]
[1723317924668,0.03560128,2608.9,2608.8,2.299853]
[1723317926164,1.91627,2609.3,2608.8,0.383323]
[1723317926462,1.91627,2609.3,2608.6,1.91668]
[1723317926788,0.0360854,2609.2,2608.6,1.91668]
[1723317927435,0.0360854,2609.2,2608.7,1.91665]
[1723317934067,2.6902,2609.1,2608.7,1.91665]
[1723317934367,0.03602986,2609.0,2608.7,2.306633]
[1723317939698,0.03602986,2609.0,2608.8,1.156]
[1723317942668,1.95249986,2609.0,2608.5,0.0665]
[1723317942874,1.91655,2608.9,2608.5,1.2225]
[1723317943097,3.86900986,2609.0,2608.5,1.2225]
[1723317943384,0.03590117,2608.9,2608.5,1.2225]
[1723317944361,1.95242117,2608.9,2608.5,1.536438]
[1723317947435,0.03590117,2608.9,2608.5,1.536438]
[1723317947725,0.03590117,2608.9,2608.6,1.99333112]
[1723317948028,2.6902,2609.1,2608.7,1.156]
[1723317948184,0.0373033,2608.8,2608.7,1.156]
[1723317948388,2.6902,2609.1,2608.7,1.99054591]
[1723317948582,2.6902,2609.1,2608.7,3.90720591]
[1723317948583,0.0373033,2608.8,2608.7,3.90720591]
[1723317948807,2.6902,2609.1,2608.7,3.90720591]
[1723317948987,0.0373033,2608.8,2608.7,3.90720591]
[1723317949191,2.6902,2609.1,2608.7,3.90720591]
[1723317949510,0.0373033,2608.8,2608.7,3.90720591]
[1723317950025,2.6902,2609.1,2608.7,3.90720591]
[1723317950203,0.0373033,2608.8,2608.7,3.90720591]
[1723317950407,2.6902,2609.1,2608.7,3.90720591]
[1723317950627,0.0373033,2608.8,2608.7,3.90720591]
[1723317950825,2.6902,2609.1,2608.7,3.07266]
[1723317951127,0.0373033,2608.8,2608.7,3.07266]
[1723317951600,2.6902,2609.1,2608.7,3.07266]
[1723317951920,0.0373033,2608.8,2608.7,3.07266]
[1723317952128,2.6902,2609.1,2608.7,3.90720291]
[1723317952296,0.03750471,2609.0,2608.7,3.90720291]
[1723317952909,4.64812,2609.3,2608.7,3.90720291]
[1723317953112,0.03596687,2608.9,2608.7,3.90720291]
[1723317953312,4.64812,2609.3,2608.7,3.90720291]
[1723317956298,2.7319,2609.3,2608.8,2.58325404]
[1723317956504,2.7319,2609.3,2608.9,3.0725]
[1723317960149,2.7319,2609.3,2608.9,1.156]
[1723317960642,2.7319,2609.3,2608.9,3.0725]
[1723317961150,4.64814,2609.3,2608.9,1.156]
[1723317961311,2.7319,2609.3,2608.8,2.5065934]
[1723317966411,2.7319,2609.3,2608.9,1.91648]
[1723317968371,2.7319,2609.3,2608.8,2.5065934]
[1723317968804,2.7319,2609.3,2608.8,4.4231334]
[1723317971381,2.7319,2609.3,2608.8,2.5065934]
[1723317971579,2.7319,2609.3,2608.8,4.4231334]
[1723317972315,2.7319,2609.3,2609.0,1.91643]
[1723317973500,2.7319,2609.3,2608.8,4.4231134]
[1723317973887,2.7319,2609.3,2608.9,1.91651]
[1723317985157,9.21603,2609.6,2609.4,1.91613]
[1723317985158,10.0878,2609.6,2609.4,1.91613]
[1723317985399,2.7878,2609.9,2609.7,1.91588]
[1723317985652,0.01581267,2610.0,2609.5,1.156]
[1723317985653,0.01581267,2610.0,2609.9,3.07178]
[1723317985868,0.01581267,2610.0,2609.9,3.570543]
[1723317986021,0.01581267,2610.0,2609.9,5.486323]
[1723317986845,0.01581267,2610.0,2609.9,5.56294771]
[1723317988020,0.01581267,2610.0,2609.9,7.47872771]
[1723317988229,0.01581267,2610.0,2609.9,10.78882771]
[1723317989193,0.01440904,2610.0,2609.9,10.78882771]
[1723317989465,0.01440904,2610.0,2609.9,13.712203]
[1723317993591,0.01440904,2610.0,2609.9,2.414543]
[1723317993878,0.01440904,2610.0,2609.9,1.156]
[1723317994080,0.01440904,2610.0,2609.9,3.07178]
[1723317994489,0.01440904,2610.0,2609.9,4.98756]
[1723317998079,0.01440904,2610.0,2609.9,1.91578]
[1723317998269,0.01440904,2610.0,2609.9,3.07178]
[1723317999188,0.01440904,2610.0,2609.9,4.98756]
[1723318000309,0.01440904,2610.0,2609.9,5.486316]
[1723318001999,0.01440904,2610.0,2609.9,10.082996]
[1723318002203,0.01440904,2610.0,2609.9,10.632996]
[1723318003819,0.01440904,2610.0,2609.9,12.248996]
[1723318011088,0.01440904,2610.0,2609.9,12.315396]
[1723318011430,0.01440904,2610.0,2609.9,7.168716]
[1723318012221,0.01440904,2610.0,2609.9,9.084496]
[1723318015087,0.01440904,2610.0,2609.9,9.634496]
[1723318018300,0.01440904,2610.0,2609.9,12.290896]
[1723318023829,0.01440904,2610.0,2609.9,10.673896]
[1723318024026,0.01440904,2610.0,2609.9,12.589676]
[1723318024607,9.04e-06,2610.0,2609.9,15.589676]
[1723318024845,9.04e-06,2610.0,2609.9,16.2524638]
[1723318025028,2.7516,2610.8,2610.7,3.83038]
[1723318025215,2.7516,2610.8,2610.7,5.55995]
[1723318027757,2.7516,2611.4,2611.1,1.91486]
[1723318038769,2.7516,2611.4,2610.7,3.83028]
[1723318038978,2.8416,2611.3,2610.8,1.155]
[1723318039133,3.05036,2611.3,2610.8,1.155]
[1723318039646,3.05036,2611.3,2610.8,3.0701]
[1723318042045,3.05036,2611.3,2610.9,1.915]
[1723318042469,2.7752,2611.3,2611.0,3.06993]
[1723318042674,2.7752,2611.3,2611.1,1.91488]
[1723318044639,2.7752,2611.3,2611.0,1.155]
[1723318045174,2.7752,2611.3,2611.0,3.06997]
[1723318047879,2.7752,2611.3,2611.0,1.155]
[1723318048763,2.7752,2611.3,2611.0,3.06992]
[1723318054406,2.7752,2611.3,2610.9,1.91498]
[1723318054607,2.7752,2611.3,2610.9,4.98498]
[1723318057709,2.7752,2611.3,2610.9,3.06998]
[1723318058274,2.7752,2611.3,2611.0,1.91496]
[1723318059514,2.7752,2611.3,2611.1,1.91489]
[1723318059749,2.7752,2611.3,2611.1,4.98474]
[1723318060438,2.7752,2611.3,2611.2,1.91482]
[1723318060810,2.7752,2611.3,2611.1,4.98471]
[1723318061015,2.7752,2611.3,2611.1,4.9847]
[1723318061935,2.7752,2611.3,2611.1,3.06985]
[1723318062344,2.7752,2611.3,2610.9,1.91501]
[1723318062507,3.05272,2611.3,2610.9,1.91501]
[1723318064863,3.05272,2611.3,2610.6,1.91521]
[1723318065017,3.05272,2611.3,2610.7,1.155]
[1723318065018,2.7237,2611.1,2610.7,1.155]
[1723318065446,2.7237,2611.5,2610.9,1.155]
[1723318065664,7.3,2611.8,2611.5,1.91456]
[1723318065864,7.3,2611.8,2611.6,1.155]
[1723318067380,7.3,2611.8,2611.6,3.06953]
[1723318067741,7.3,2611.8,2611.6,1.155]
[1723318068584,2.7237,2611.6,2611.2,1.91481]
[1723318068751,2.7237,2611.6,2611.2,1.155]
[1723318070983,2.7237,2611.5,2611.2,1.155]
[1723318072364,2.7237,2611.5,2611.2,3.06975]
[1723318072708,22.56240392,2611.7,2611.4,1.155]
[1723318073797,2.8962,2611.6,2610.9,1.155]
[1723318074003,2.8962,2611.4,2610.9,3.07]
[1723318075106,5.291972,2611.4,2610.8,1.91507]
[1723318075345,2.8962,2611.3,2610.8,3.07007]
[1723318075510,2.8962,2611.3,2610.8,4.98514]
[1723318076225,2.8962,2611.3,2610.8,3.07007]
[1723318082085,2.8962,2611.3,2611.0,1.155]
[1723318085980,2.8962,2611.0,2610.6,1.155]
[1723318086191,2.8962,2610.7,2610.0,1.91566]